[Event "Queens Festival Final Team 2022"]
[Site "Tornelo"]
[Date "2022.06.26"]
[Round "5.2"]
[White "Medeiros, Thauane Ferreira"]
[Black "Hong, Xing"]
[Result "0-1"]
[ECO "D00"]
[WhiteElo "1884"]
[BlackElo "1999"]
[Annotator "NA RC"]
[PlyCount "104"]
[EventDate "2022.06.24"]
[EventType "team-tourn"]
[EventCountry "NET"]
[SourceTitle "playchess.com"]
[Source "ChessBase"]
[SourceQuality "1"]
[WhiteTeam "Brazil"]
[BlackTeam "China"]
[WhiteTeamCountry "BRA"]
[BlackTeamCountry "CHN"]
[TimeControl "180+2"]

1. d4 {[%emt 0:00:02]} Nf6 {[%emt 0:00:04]} 2. Bf4 {[%emt 0:00:04]} c5 {[%emt 0:00:02]} 3. e3 {[%emt 0:00:02]} d5 {[%emt 0:00:03]} 4. c3 {[%emt 0:00:03]} Bf5 {[%emt 0:00:03]} 5. Nf3 {[%emt 0:00:14]} e6 {[%emt 0:00:01]} 6. h3 {[%emt 0:00:01]} Be7 {[%emt 0:00:03]} 7. Nbd2 {[%emt 0:00:02]} O-O {[%emt 0:00:01]} 8. Be2 {[%emt 0:00:01]} Nc6 {[%emt 0:00:01]} 9. O-O {[%emt 0:00:05]} h6 {[%emt 0:00:01]} 10. Ne5 {[%emt 0:00:07]} Nd7 {[%emt 0:00:07]} 11. Ndf3 {[%emt 0:00:15]} f6 {[%emt 0:00:14]} 12. Nxd7 {[%emt 0:00:30]} Qxd7 {[%emt 0:00:01]} 13. Bg3 {[%emt 0:00:26]} Rae8 {[%emt 0:00:03]} 14. a4 {[%emt 0:00:06]} Bd6 {[%emt 0:00:16]} 15. Bxd6 {[%emt 0:00:03]} Qxd6 {[%emt 0:00:01]} 16. Qb3 {[%emt 0:00:25]} b6 {[%emt 0:00:04]} 17. Bb5 {[%emt 0:00:07]} Rd8 {[%emt 0:00:10]} 18. Rad1 {[%emt 0:00:23]} c4 {[%emt 0:00:06]} 19. Qa2 {[%emt 0:00:04]} Bd3 {[%emt 0:00:02]} 20. Rfe1 {[%emt 0:00:05]} Ne7 {[%emt 0:00:22]} 21. Rd2 {[%emt 0:00:13]} e5 {[%emt 0:00:06]} 22. dxe5 {[%emt 0:00:03]} fxe5 {[%emt 0:00:01]} 23. b3 {[%emt 0:00:01]} a6 {[%emt 0:00:23]} 24. Bxa6 {[%emt 0:00:03]} cxb3 {[%emt 0:00:02]} 25. Qxb3 {[%emt 0:00:02]} Bxa6 {[%emt 0:00:01]} 26. e4 {[%emt 0:00:06]} Bc4 {[%emt 0:00:07]} 27. Qb2 {[%emt 0:00:03]} Qc5 {[%emt 0:00:09]} 28. Nxe5 {[%emt 0:00:08]} dxe4 {[%emt 0:00:06]} 29. Rxd8 {[%emt 0:00:03]} Rxd8 {[%emt 0:00:02]} 30. Nxc4 {[%emt 0:00:03]} Qxc4 {[%emt 0:00:01]} 31. Qxb6 {[%emt 0:00:02]} Rf8 {[%emt 0:00:05]} 32. a5 {[%emt 0:00:05]} Kh7 {[%emt 0:00:30]} 33. Qb4 {[%emt 0:00:02]} Qd5 {[%emt 0:00:11]} 34. Qxe4+ {[%emt 0:00:03]} Qxe4 {[%emt 0:00:01]} 35. Rxe4 {[%emt 0:00:00]} Nd5 {[%emt 0:00:02]} 36. Re5 {[%emt 0:00:01]} Nxc3 {[%emt 0:00:01]} 37. a6 {[%emt 0:00:02]} Ra8 {[%emt 0:00:01]} 38. Ra5 {[%emt 0:00:02]} Ne4 {[%emt 0:00:02]} 39. f3 {[%emt 0:00:03]} Nd6 {[%emt 0:00:01]} 40. Kf2 {[%emt 0:00:02]} Nc4 {[%emt 0:00:05]} 41. Ra4 {[%emt 0:00:01]} Nb6 {[%emt 0:00:01]} 42. Ra5 {[%emt 0:00:03]} Ra7 {[%emt 0:00:02]} 43. g4 {[%emt 0:00:03]} Na8 {[%emt 0:00:02]} 44. h4 {[%emt 0:00:03]} Nc7 {[%emt 0:00:01]} 45. h5 {[%emt 0:00:02]} Rxa6 {[%emt 0:00:02]} 46. Rc5 {[%emt 0:00:02]} Ne6 {[%emt 0:00:01]} 47. Rc8 {[%emt 0:00:03]} Ng5 {[%emt 0:00:04]} 48. Rf8 {[%emt 0:00:04]} Ra1 {[%emt 0:00:04]} 49. Rf5 {[%emt 0:00:04]} Ra2+ {[%emt 0:00:03]} 50. Kg3 {[%emt 0:00:02]} Ra3 {[%emt 0:00:01]} 51. Kf2 {[%emt 0:00:02]} Ne6 {[%emt 0:00:02]} 52. Rf7 {[%emt 0:00:03]} Kg8 {[%emt 0:00:03]} 0-1

[Event "Queens Festival Final Team 2022"]
[Site "Tornelo"]
[Date "2022.06.26"]
[Round "5.2"]
[White "Cui, Wen"]
[Black "Bucci, Andrea Vidigal"]
[Result "1/2-1/2"]
[ECO "C41"]
[WhiteElo "1718"]
[BlackElo "1769"]
[Annotator "NA RC"]
[PlyCount "78"]
[EventDate "2022.06.24"]
[EventType "team-tourn"]
[EventCountry "NET"]
[SourceTitle "playchess.com"]
[Source "ChessBase"]
[SourceQuality "1"]
[WhiteTeam "China"]
[BlackTeam "Brazil"]
[WhiteTeamCountry "CHN"]
[BlackTeamCountry "BRA"]
[TimeControl "180+2"]

1. e4 {[%emt 0:00:02]} e5 {[%emt 0:00:07]} 2. Nf3 {[%emt 0:00:03]} d6 {[%emt 0:00:02]} 3. d4 {[%emt 0:00:07]} Nf6 {[%emt 0:00:02]} 4. Nc3 {[%emt 0:00:03]} c6 {[%emt 0:00:04]} 5. dxe5 {[%emt 0:00:03]} Ng4 {[%emt 0:00:16]} 6. exd6 {[%emt 0:00:19]} Bxd6 {[%emt 0:00:09]} 7. Be2 {[%emt 0:00:07]} Qc7 {[%emt 0:00:08]} 8. h3 {[%emt 0:00:02]} Ne5 {[%emt 0:00:02]} 9. O-O {[%emt 0:00:02]} O-O {[%emt 0:00:05]} 10. Be3 {[%emt 0:00:12]} f5 {[%emt 0:00:08]} 11. exf5 {[%emt 0:00:07]} Bxf5 {[%emt 0:00:04]} 12. Bd4 {[%emt 0:00:14]} Nbd7 {[%emt 0:00:08]} 13. Nxe5 {[%emt 0:00:33]} Nxe5 {[%emt 0:00:03]} 14. Be3 {[%emt 0:00:13]} Rad8 {[%emt 0:00:07]} 15. Bg5 {[%emt 0:00:02]} Rd7 {[%emt 0:00:04]} 16. Qc1 {[%emt 0:00:08]} Ng6 {[%emt 0:00:15]} 17. Bg4 {[%emt 0:00:16]} Bxg4 {[%emt 0:00:20]} 18. hxg4 {[%emt 0:00:01]} Bf4 {[%emt 0:00:02]} 19. Bxf4 {[%emt 0:00:03]} Nxf4 {[%emt 0:00:08]} 20. Qe3 {[%emt 0:00:03]} Re7 {[%emt 0:00:09]} 21. Qg3 {[%emt 0:00:10]} Qe5 {[%emt 0:00:18]} 22. Rad1 {[%emt 0:00:21]} Qxc3 {[%emt 0:00:16]} 23. bxc3 {[%emt 0:00:12]} Ne2+ {[%emt 0:00:01]} 24. Kh2 {[%emt 0:00:02]} Nxg3 {[%emt 0:00:04]} 25. Kxg3 {[%emt 0:00:02]} Re2 {[%emt 0:00:04]} 26. Rc1 {[%emt 0:00:03]} Rd8 {[%emt 0:00:03]} 27. Rfe1 {[%emt 0:00:06]} Red2 {[%emt 0:00:09]} 28. f3 {[%emt 0:00:05]} Kf7 {[%emt 0:00:02]} 29. Rb1 {[%emt 0:00:03]} b6 {[%emt 0:00:02]} 30. Rbc1 {[%emt 0:00:03]} c5 {[%emt 0:00:02]} 31. Re3 {[%emt 0:00:02]} R8d7 {[%emt 0:00:01]} 32. Ree1 {[%emt 0:00:05]} g6 {[%emt 0:00:01]} 33. Rh1 {[%emt 0:00:03]} Kf6 {[%emt 0:00:02]} 34. Rhe1 {[%emt 0:00:03]} h6 {[%emt 0:00:01]} 35. Rh1 {[%emt 0:00:02]} Kg7 {[%emt 0:00:01]} 36. Rhe1 {[%emt 0:00:03]} Kf6 {[%emt 0:00:04]} 37. Rh1 {[%emt 0:00:02]} Kg7 {[%emt 0:00:01]} 38. Rhe1 {[%emt 0:00:02]} Kf7 {[%emt 0:00:01]} 39. Rh1 {[%emt 0:00:02]} Kg7 {[%emt 0:00:00]} 1/2-1/2

[Event "Queens Festival Final Team 2022"]
[Site "Tornelo"]
[Date "2022.06.26"]
[Round "5.2"]
[White "Gomes, Maria Eduarda Papini"]
[Black "Jiang, Tianyu"]
[Result "0-1"]
[ECO "A50"]
[WhiteElo "1618"]
[BlackElo "1502"]
[Annotator "NA RC"]
[PlyCount "32"]
[EventDate "2022.06.24"]
[EventType "team-tourn"]
[EventCountry "NET"]
[SourceTitle "playchess.com"]
[Source "ChessBase"]
[SourceQuality "1"]
[WhiteTeam "Brazil"]
[BlackTeam "China"]
[WhiteTeamCountry "BRA"]
[BlackTeamCountry "CHN"]
[TimeControl "180+2"]

1. d4 {[%emt 0:00:02]} Nf6 {[%emt 0:00:05]} 2. c4 {[%emt 0:00:02]} Nc6 {[%emt 0:00:02]} 3. Nc3 {[%emt 0:00:01]} e5 {[%emt 0:00:02]} 4. d5 {[%emt 0:00:02]} Ne7 {[%emt 0:00:03]} 5. e4 {[%emt 0:00:02]} Ng6 {[%emt 0:00:01]} 6. Nf3 {[%emt 0:00:04]} Bb4 {[%emt 0:00:02]} 7. Qc2 {[%emt 0:00:09]} O-O {[%emt 0:00:02]} 8. Bd3 {[%emt 0:00:04]} d6 {[%emt 0:00:01]} 9. O-O {[%emt 0:00:02]} Nh5 {[%emt 0:00:01]} 10. a3 {[%emt 0:00:04]} Bxc3 {[%emt 0:00:02]} 11. Qxc3 {[%emt 0:00:02]} Ngf4 {[%emt 0:00:00]} 12. b4 {[%emt 0:00:10]} Qf6 {[%emt 0:00:04]} 13. Kh1 {[%emt 0:00:25]} h6 {[%emt 0:00:19]} 14. c5 {[%emt 0:00:06]} Nxg2 {[%emt 0:00:03]} 15. Kxg2 {[%emt 0:00:19]} Bh3+ {[%emt 0:00:01]} 16. Kh1 {[%emt 0:00:10]} Qxf3+ {[%emt 0:00:02]} 0-1

[Event "Queens Festival Final Team 2022"]
[Site "Tornelo"]
[Date "2022.06.26"]
[Round "5.3"]
[White "Bian, Erin"]
[Black "Masoumi, Sahar"]
[Result "0-1"]
[ECO "B33"]
[WhiteElo "1811"]
[BlackElo "2004"]
[Annotator "NA RC"]
[PlyCount "108"]
[EventDate "2022.06.24"]
[EventType "team-tourn"]
[EventCountry "NET"]
[SourceTitle "playchess.com"]
[Source "ChessBase"]
[SourceQuality "1"]
[WhiteTeam "United States"]
[BlackTeam "Iran"]
[WhiteTeamCountry "USA"]
[BlackTeamCountry "IRI"]
[TimeControl "180+2"]

1. e4 {[%emt 0:00:02]} c5 {[%emt 0:00:04]} 2. Nf3 {[%emt 0:00:02]} Nc6 {[%emt 0:00:02]} 3. d4 {[%emt 0:00:01]} cxd4 {[%emt 0:00:01]} 4. Nxd4 {[%emt 0:00:01]} Nf6 {[%emt 0:00:01]} 5. Nc3 {[%emt 0:00:01]} e6 {[%emt 0:00:01]} 6. Ndb5 {[%emt 0:00:02]} d6 {[%emt 0:00:02]} 7. Bf4 {[%emt 0:00:01]} e5 {[%emt 0:00:01]} 8. Bg5 {[%emt 0:00:01]} a6 {[%emt 0:00:01]} 9. Na3 {[%emt 0:00:01]} b5 {[%emt 0:00:02]} 10. Nd5 {[%emt 0:00:01]} Be7 {[%emt 0:00:02]} 11. Bxf6 {[%emt 0:00:01]} Bxf6 {[%emt 0:00:01]} 12. c3 {[%emt 0:00:00]} Rb8 {[%emt 0:00:03]} 13. Nc2 {[%emt 0:00:02]} O-O {[%emt 0:00:01]} 14. g3 {[%emt 0:00:08]} g6 {[%emt 0:00:02]} 15. h4 {[%emt 0:00:09]} Bg7 {[%emt 0:00:03]} 16. Bh3 {[%emt 0:00:04]} Be6 {[%emt 0:00:01]} 17. h5 {[%emt 0:00:08]} Qd7 {[%emt 0:00:17]} 18. Bxe6 {[%emt 0:00:04]} fxe6 {[%emt 0:00:02]} 19. Nde3 {[%emt 0:00:06]} Qf7 {[%emt 0:00:04]} 20. Qe2 {[%emt 0:00:18]} d5 {[%emt 0:00:04]} 21. hxg6 {[%emt 0:00:07]} Qxg6 {[%emt 0:00:13]} 22. exd5 {[%emt 0:00:04]} exd5 {[%emt 0:00:17]} 23. Nxd5 {[%emt 0:00:02]} Rfd8 {[%emt 0:00:02]} 24. O-O-O {[%emt 0:00:06]} a5 {[%emt 0:00:18]} 25. f4 {[%emt 0:00:31]} b4 {[%emt 0:00:14]} 26. fxe5 {[%emt 0:00:16]} bxc3 {[%emt 0:00:09]} 27. Nxc3 {[%emt 0:00:03]} Nxe5 {[%emt 0:00:05]} 28. Rxd8+ {[%emt 0:00:09]} Rxd8 {[%emt 0:00:02]} 29. Rd1 {[%emt 0:00:17]} Nd3+ {[%emt 0:00:09]} 30. Kb1 {[%emt 0:00:02]} Bxc3 {[%emt 0:00:03]} 31. bxc3 {[%emt 0:00:06]} Qb6+ {[%emt 0:00:06]} 32. Nb4 {[%emt 0:00:07]} axb4 {[%emt 0:00:05]} 33. Rxd3 {[%emt 0:00:16]} bxc3+ {[%emt 0:00:10]} 34. Kc1 {[%emt 0:00:04]} Qb2+ {[%emt 0:00:05]} 35. Qxb2 {[%emt 0:00:08]} cxb2+ {[%emt 0:00:01]} 36. Kxb2 {[%emt 0:00:01]} Rxd3 {[%emt 0:00:02]} 37. a4 {[%emt 0:00:01]} Rxg3 {[%emt 0:00:01]} 38. a5 {[%emt 0:00:01]} Rg7 {[%emt 0:00:03]} 39. Kb3 {[%emt 0:00:02]} h5 {[%emt 0:00:01]} 40. Kb4 {[%emt 0:00:02]} h4 {[%emt 0:00:01]} 41. Kb5 {[%emt 0:00:01]} h3 {[%emt 0:00:01]} 42. a6 {[%emt 0:00:01]} h2 {[%emt 0:00:02]} 43. Kb6 {[%emt 0:00:01]} h1=Q {[%emt 0:00:02]} 44. a7 {[%emt 0:00:01]} Qb7+ {[%emt 0:00:03]} 45. Kc5 {[%emt 0:00:01]} Qxa7+ {[%emt 0:00:01]} 46. Kd5 {[%emt 0:00:01]} Rd7+ {[%emt 0:00:02]} 47. Ke5 {[%emt 0:00:01]} Qc7+ {[%emt 0:00:01]} 48. Kf5 {[%emt 0:00:00]} Rf7+ {[%emt 0:00:02]} 49. Ke4 {[%emt 0:00:01]} Qd6 {[%emt 0:00:04]} 50. Ke3 {[%emt 0:00:02]} Re7+ {[%emt 0:00:01]} 51. Kf3 {[%emt 0:00:01]} Qf6+ {[%emt 0:00:02]} 52. Kg4 {[%emt 0:00:01]} Rg7+ {[%emt 0:00:01]} 53. Kh5 {[%emt 0:00:00]} Qg6+ {[%emt 0:00:02]} 54. Kh4 {[%emt 0:00:01]} Qh6# {[%emt 0:00:01]} 0-1

[Event "Queens Festival Final Team 2022"]
[Site "Tornelo"]
[Date "2022.06.26"]
[Round "5.3"]
[White "Davari, Sara"]
[Black "Yellamraju, Aparna"]
[Result "1-0"]
[ECO "C11"]
[WhiteElo "1674"]
[BlackElo "1720"]
[Annotator "NA RC"]
[PlyCount "121"]
[EventDate "2022.06.24"]
[EventType "team-tourn"]
[EventCountry "NET"]
[SourceTitle "playchess.com"]
[Source "ChessBase"]
[SourceQuality "1"]
[WhiteTeam "Iran"]
[BlackTeam "United States"]
[WhiteTeamCountry "IRI"]
[BlackTeamCountry "USA"]
[TimeControl "180+2"]

1. e4 {[%emt 0:00:02]} e6 {[%emt 0:00:04]} 2. d4 {[%emt 0:00:02]} d5 {[%emt 0:00:01]} 3. Nc3 {[%emt 0:00:01]} Nf6 {[%emt 0:00:04]} 4. e5 {[%emt 0:00:01]} Nfd7 {[%emt 0:00:01]} 5. Nce2 {[%emt 0:00:02]} c5 {[%emt 0:00:02]} 6. c3 {[%emt 0:00:01]} Qb6 {[%emt 0:00:05]} 7. f4 {[%emt 0:00:03]} a6 {[%emt 0:00:06]} 8. Nf3 {[%emt 0:00:03]} Qc7 {[%emt 0:00:02]} 9. g3 {[%emt 0:00:09]} b5 {[%emt 0:00:02]} 10. a3 {[%emt 0:00:01]} Bb7 {[%emt 0:00:01]} 11. Bh3 {[%emt 0:00:04]} g6 {[%emt 0:00:02]} 12. O-O {[%emt 0:00:03]} Nc6 {[%emt 0:00:05]} 13. Be3 {[%emt 0:00:02]} O-O-O {[%emt 0:00:04]} 14. b4 {[%emt 0:00:20]} c4 {[%emt 0:00:06]} 15. a4 {[%emt 0:00:01]} Qb6 {[%emt 0:00:14]} 16. axb5 {[%emt 0:00:03]} axb5 {[%emt 0:00:03]} 17. Ng5 {[%emt 0:00:30]} Re8 {[%emt 0:00:31]} 18. Nxf7 {[%emt 0:00:04]} Rg8 {[%emt 0:00:02]} 19. Ng5 {[%emt 0:00:21]} Nd8 {[%emt 0:00:09]} 20. Qc2 {[%emt 0:00:23]} h6 {[%emt 0:00:10]} 21. Nf3 {[%emt 0:00:06]} Kc7 {[%emt 0:00:02]} 22. Qa2 {[%emt 0:00:06]} Be7 {[%emt 0:00:17]} 23. Qa5 {[%emt 0:00:16]} Bf8 {[%emt 0:00:17]} 24. Qxb6+ {[%emt 0:00:09]} Kxb6 {[%emt 0:00:02]} 25. Kf2 {[%emt 0:00:09]} Be7 {[%emt 0:00:14]} 26. g4 {[%emt 0:00:16]} h5 {[%emt 0:00:07]} 27. gxh5 {[%emt 0:00:06]} gxh5 {[%emt 0:00:01]} 28. Rg1 {[%emt 0:00:02]} Ref8 {[%emt 0:00:16]} 29. Rxg8 {[%emt 0:00:08]} Rxg8 {[%emt 0:00:02]} 30. Rg1 {[%emt 0:00:02]} Rxg1 {[%emt 0:00:03]} 31. Kxg1 {[%emt 0:00:01]} Nf8 {[%emt 0:00:06]} 32. f5 {[%emt 0:00:05]} exf5 {[%emt 0:00:04]} 33. Bxf5 {[%emt 0:00:01]} Nde6 {[%emt 0:00:03]} 34. Nf4 {[%emt 0:00:10]} Nxf4 {[%emt 0:00:05]} 35. Bxf4 {[%emt 0:00:02]} Bc6 {[%emt 0:00:12]} 36. Kg2 {[%emt 0:00:04]} Be8 {[%emt 0:00:07]} 37. h4 {[%emt 0:00:06]} Kc6 {[%emt 0:00:02]} 38. Bg5 {[%emt 0:00:03]} Bxg5 {[%emt 0:00:09]} 39. hxg5 {[%emt 0:00:01]} Ng6 {[%emt 0:00:05]} 40. Bxg6 {[%emt 0:00:03]} Bxg6 {[%emt 0:00:02]} 41. Kg3 {[%emt 0:00:01]} Kd7 {[%emt 0:00:01]} 42. Kh4 {[%emt 0:00:01]} Ke7 {[%emt 0:00:01]} 43. Kg3 {[%emt 0:00:02]} Ke6 {[%emt 0:00:01]} 44. Kf4 {[%emt 0:00:01]} Be8 {[%emt 0:00:04]} 45. Nh4 {[%emt 0:00:01]} Kf7 {[%emt 0:00:05]} 46. g6+ {[%emt 0:00:03]} Kg7 {[%emt 0:00:01]} 47. Kf5 {[%emt 0:00:02]} Bd7+ {[%emt 0:00:03]} 48. e6 {[%emt 0:00:01]} Be8 {[%emt 0:00:02]} 49. Kg5 {[%emt 0:00:01]} Kg8 {[%emt 0:00:02]} 50. Kxh5 {[%emt 0:00:04]} Kg7 {[%emt 0:00:01]} 51. Kg5 {[%emt 0:00:01]} Bc6 {[%emt 0:00:02]} 52. Nf5+ {[%emt 0:00:02]} Kg8 {[%emt 0:00:02]} 53. Ne7+ {[%emt 0:00:01]} Kg7 {[%emt 0:00:02]} 54. Nxc6 {[%emt 0:00:01]} Kf8 {[%emt 0:00:01]} 55. e7+ {[%emt 0:00:04]} Ke8 {[%emt 0:00:02]} 56. g7 {[%emt 0:00:02]} Kd7 {[%emt 0:00:01]} 57. g8=Q {[%emt 0:00:04]} Kxc6 {[%emt 0:00:02]} 58. e8=Q+ {[%emt 0:00:02]} Kb6 {[%emt 0:00:01]} 59. Qge6+ {[%emt 0:00:02]} Kc7 {[%emt 0:00:03]} 60. Q8d7+ {[%emt 0:00:01]} Kb8 {[%emt 0:00:02]} 61. Qee8# {[%emt 0:00:01]} 1-0

[Event "Queens Festival Final Team 2022"]
[Site "Tornelo"]
[Date "2022.06.26"]
[Round "5.3"]
[White "khezrian, Neda"]
[Black "Krush, Irina"]
[Result "0-1"]
[ECO "D02"]
[WhiteElo "1056"]
[BlackElo "2430"]
[Annotator "TA"]
[PlyCount "82"]
[EventDate "2022.06.24"]
[EventType "team-tourn"]
[EventCountry "NET"]
[SourceTitle "playchess.com"]
[Source "ChessBase"]
[SourceQuality "1"]
[WhiteTeam "Iran"]
[BlackTeam "United States"]
[WhiteTeamCountry "IRI"]
[BlackTeamCountry "USA"]
[TimeControl "180+2"]

{[%evp 9,81,-20,-13,-15,8,0,22,8,0,-17,15,-97,-20,-20,12,-75,-66,-71,-46,-79,0,-65,0,-260,-254,-260,-271,-271,-271,-367,-367,-469,-469,-449,-429,-494,-497,-502,-488,-510,-501,-588,-537,-570,-544,-1030,-537,-529,-501,-570,-551,-866,-863,-853,-847,-29988,-29989,-29991,-29991,-29993,-29992,-29992,-29993,-29993,-29994,-29994,-29995,-29998,-29997,-29998,-29998,-29998,-29999,-29999]} 1. d4 {[%emt 0:00:02]} d5 {[%emt 0:00:05]} 2. Bf4 {[%emt 0:00:02]} Nf6 {[%emt 0:00:02]} 3. Nf3 {[%emt 0:00:02]} c5 {[%emt 0:00:01]} 4. c3 {[%emt 0:00:03]} Nc6 {[%emt 0:00:10]} 5. Nbd2 {[%emt 0:00:03]} cxd4 {[%emt 0:00:11]} 6. cxd4 {[%emt 0:00:03] D02: 1 d4 d5 2 Nf3 sidelines, including 2...Nf6 3 g3 and 2...Nf6 3 Bf4.} Bf5 {[%emt 0:00:03]} 7. e3 {[%emt 0:00:07]} e6 {[%emt 0:00:01]} 8. Bb5 {[%emt 0:00:11] [#] The position is equal.} Qb6 $146 {[%emt 0:00:04]} ({Predecessor:} 8... Bd6 9. Rc1 Rc8 10. Ne5 Bxe5 11. Bxe5 O-O 12. Bxc6 bxc6 13. O-O Ne4 14. Nxe4 Bxe4 {1-0 (40) Audi,A (2378)-Bommini,M (2029) Chess.com INT 2020}) 9. Qb3 {[%emt 0:00:14]} Nd7 {[%emt 0:00:19]} 10. Bxc6 {[%emt 0:00:04]} (10. O-O $11) 10... bxc6 {[%emt 0:00:07]} (10... Qxc6 $17 11. Qd1 Bc2) 11. O-O $11 {[%emt 0:00:06]} c5 {[%emt 0:00:02]} 12. Ne5 {[%emt 0:00:07]} (12. Rfc1 $11 {keeps the balance.}) 12... Nxe5 $17 {[%emt 0:00:07]} 13. Bxe5 {[%emt 0:00:06] [#] Threatens to win with Qa4+.} f6 {[%emt 0:00:01] Hoping for ...Qxb3.} 14. Bg3 {[%emt 0:00:03]} Be7 {[%emt 0:00:05]} (14... Kf7 $17) 15. Rac1 {[%emt 0:00:13]} ({White should try} 15. dxc5 $11 Bxc5 16. Qa4+ Kf7 17. Rac1) 15... Kf7 {[%emt 0:00:06]} (15... Qxb3 $15 16. Nxb3 c4) 16. Nf3 $2 {[%emt 0:00:08][%mdl 8192] [#] White is on the road to losing.} (16. dxc5 $11 Bxc5 17. Rc3) 16... c4 $1 $19 {[%emt 0:00:09]} 17. Qxb6 {[%emt 0:00:19]} axb6 {[%emt 0:00:02]} 18. a3 {[%emt 0:00:01]} b5 {[%emt 0:00:05]} 19. Rfe1 {[%emt 0:00:05]} b4 {[%emt 0:00:06]} 20. axb4 {[%emt 0:00:08]} Bxb4 {[%emt 0:00:02]} 21. Red1 {[%emt 0:00:03]} Ra2 {[%emt 0:00:21]} 22. Ra1 {[%emt 0:00:13]} Rha8 {[%emt 0:00:04]} 23. Rxa2 {[%emt 0:00:04]} Rxa2 {[%emt 0:00:02]} 24. h3 {[%emt 0:00:05]} Rxb2 {[%emt 0:00:04]} 25. Ra1 {[%emt 0:00:04]} Rb1+ {[%emt 0:00:01]} 26. Rxb1 {[%emt 0:00:11]} Bxb1 {[%emt 0:00:02][%mdl 4096] Endgame KBB-KBN} 27. Kh2 {[%emt 0:00:01]} c3 {[%emt 0:00:25] Strongly threatening ...c2.} 28. Ne1 {[%emt 0:00:06]} Ba3 {[%emt 0:00:02]} 29. f3 {[%emt 0:00:27]} Bc1 {[%emt 0:00:02] This bishop pair is nice.} 30. e4 {[%emt 0:00:05]} dxe4 {[%emt 0:00:03]} 31. fxe4 {[%emt 0:00:02]} Bxe4 {[%emt 0:00:02]} 32. Bf4 {[%emt 0:00:11]} Bxf4+ {[%emt 0:00:02] Black mates.} 33. Kh1 {[%emt 0:00:04]} Bd2 {[%emt 0:00:02]} 34. Nf3 {[%emt 0:00:03]} Bxf3 {[%emt 0:00:02]} 35. gxf3 {[%emt 0:00:01] KB-K3P} c2 {[%emt 0:00:01]} 36. d5 {[%emt 0:00:04]} c1=Q+ {[%emt 0:00:04]} 37. Kg2 {[%emt 0:00:02]} exd5 {[%emt 0:00:01]} 38. Kg3 {[%emt 0:00:02]} Bf4+ {[%emt 0:00:01]} 39. Kh4 {[%emt 0:00:03]} Qe1+ {[%emt 0:00:04]} 40. Kg4 {[%emt 0:00:02]} Qg3+ {[%emt 0:00:02]} 41. Kf5 {[%emt 0:00:02]} Qg5# {[%emt 0:00:01] Weighted Error Value: White=0.71/Black=0.26 (precise)} 0-1

[Event "Queens Festival Final Team 2022"]
[Site "Tornelo"]
[Date "2022.06.26"]
[Round "5.4"]
[White "Ovezdurdiyeva, Jemal"]
[Black "Maksimovic, Suzana"]
[Result "1/2-1/2"]
[ECO "E61"]
[WhiteElo "2061"]
[BlackElo "2145"]
[Annotator "NA RC"]
[PlyCount "72"]
[EventDate "2022.06.24"]
[EventType "team-tourn"]
[EventCountry "NET"]
[SourceTitle "playchess.com"]
[Source "ChessBase"]
[SourceQuality "1"]
[WhiteTeam "Turkmenistan"]
[BlackTeam "Serbia"]
[WhiteTeamCountry "TKM"]
[BlackTeamCountry "SRB"]
[TimeControl "180+2"]

1. d4 {[%emt 0:00:02]} Nf6 {[%emt 0:00:06]} 2. c4 {[%emt 0:00:02]} c5 {[%emt 0:00:03]} 3. d5 {[%emt 0:00:02]} g6 {[%emt 0:00:02]} 4. Nc3 {[%emt 0:00:02]} Bg7 {[%emt 0:00:02]} 5. Nf3 {[%emt 0:00:01]} O-O {[%emt 0:00:03]} 6. Bg5 {[%emt 0:00:03]} d6 {[%emt 0:00:06]} 7. h3 {[%emt 0:00:04]} h6 {[%emt 0:00:04]} 8. Bh4 {[%emt 0:00:02]} Nbd7 {[%emt 0:00:01]} 9. e3 {[%emt 0:00:05]} a6 {[%emt 0:00:05]} 10. Be2 {[%emt 0:00:11]} Ne8 {[%emt 0:00:11]} 11. O-O {[%emt 0:00:04]} Nc7 {[%emt 0:00:02]} 12. a4 {[%emt 0:00:07]} b6 {[%emt 0:00:04]} 13. Nd2 {[%emt 0:00:21]} f5 {[%emt 0:00:21]} 14. f4 {[%emt 0:00:08]} Nf6 {[%emt 0:00:14]} 15. Bf3 {[%emt 0:00:04]} Rb8 {[%emt 0:00:02]} 16. Qe2 {[%emt 0:00:07]} Bd7 {[%emt 0:00:18]} 17. e4 {[%emt 0:00:05]} fxe4 {[%emt 0:00:14]} 18. Ndxe4 {[%emt 0:00:02]} b5 {[%emt 0:00:04]} 19. axb5 {[%emt 0:00:40]} axb5 {[%emt 0:00:01]} 20. Rae1 {[%emt 0:00:01]} bxc4 {[%emt 0:00:31]} 21. Bxf6 {[%emt 0:00:04]} Bxf6 {[%emt 0:00:05]} 22. Nxf6+ {[%emt 0:00:01]} exf6 {[%emt 0:00:01]} 23. Ne4 {[%emt 0:00:03]} Bf5 {[%emt 0:00:14]} 24. g4 {[%emt 0:00:12]} Bxe4 {[%emt 0:00:10]} 25. Bxe4 {[%emt 0:00:03]} f5 {[%emt 0:00:04]} 26. Bg2 {[%emt 0:00:20]} Qf6 {[%emt 0:00:12]} 27. Rf2 {[%emt 0:00:09]} Rfe8 {[%emt 0:00:06]} 28. Qf1 {[%emt 0:00:08]} Rxe1 {[%emt 0:00:04]} 29. Qxe1 {[%emt 0:00:03]} Rxb2 {[%emt 0:00:05]} 30. Rxb2 {[%emt 0:00:23]} Qxb2 {[%emt 0:00:02]} 31. Qe7 {[%emt 0:00:02]} Qc1+ {[%emt 0:00:08]} 32. Kh2 {[%emt 0:00:04]} Qxf4+ {[%emt 0:00:03]} 33. Kh1 {[%emt 0:00:01]} Qc1+ {[%emt 0:00:11]} 34. Kh2 {[%emt 0:00:02]} Qf4+ {[%emt 0:00:02]} 35. Kh1 {[%emt 0:00:01]} Qc1+ {[%emt 0:00:03]} 36. Kh2 {[%emt 0:00:01]} Qf4+ {[%emt 0:00:01]} 1/2-1/2